Cogmind - Beta 13 X2 *** ADVENTURER MODE // 2023.12.23 @ 19:42:44 Player: AI-57H Result: Destroyed by 8R-AWN with 8R-AWN's Boregun Performance ------------- Evolutions (0) 0 Regions Visited (3) 600 Robots Destroyed (35) 175 Value Destroyed (651) 651 Prototype IDs (0) 0 Alien Tech Used (0) 0 Bonus (-102) -102 TOTAL SCORE: 1324 Bonus ------- Friendly Fire -102 Cogmind --------- Core Integrity 0/250 Matter 109/300 Energy 158/250 System Corruption 1% Temperature Warm (160) Movement Rolling (215) Ox9 Location -10/Exiles Parts ------- > --- POWER (1) -------- Ion Engine > --- PROPULSION (2) --- Wheel > --- UTILITY (2) ------ Huge Storage Unit Targeting Computer > --- WEAPON (2) ------- Light Cannon Light Cannon > --- INVENTORY (25) --- Ion Engine Light Ion Engine Light Ion Engine Structural Scanner Visual Processing Unit Sensor Array Signal Interpreter Improved Terrain Scanner Terrain Scan Processor Seismic Detector Targeting Computer EM Pulse Gun Grenade Launcher Grenade Launcher Grenade Launcher Rocket Launcher Peak State ------------ > --- POWER ------------ Ion Engine > --- PROPULSION ------- Wheel Wheel > --- UTILITY ---------- Huge Storage Unit Improved Terrain Scanner > --- WEAPON ----------- Light Cannon Light Cannon > --- INVENTORY -------- Ion Engine Ion Engine Ion Engine Light Ion Engine Light Ion Engine Wheel Wheel Wheel Heat Sink High-capacity Matter Pod Structural Scanner Visual Processing Unit Sensor Array Signal Interpreter Terrain Scan Processor Seismic Detector Light Armor Plating EM Pulse Gun Light Cannon Light Cannon Light Cannon Grenade Launcher Grenade Launcher Grenade Launcher [Rating: 11] Favorites ----------- Power Ion Engine Engine Ion Engine Propulsion Light Treads Treads Light Treads Wheel Wheel Utility Improved Terrain Scanner Device Improved Terrain Scanner Storage Small Storage Unit Processor Targeting Computer Protection Light Armor Plating Weapon Medium Laser Energy Gun Medium Laser Ballistic Cannon Light Cannon Launcher Grenade Launcher Build | -11 -10 -10 -10 ------- Run | Yrd Mat Min Exi Slots Evolved . | . . . . Power . | . . . . Propulsion . | . . . . Utility . | . . . . Weapon . | . . . . Parts Attached 31 | 9 7 4 11 Power 3 | 1 . . 2 Engine 3 | 1 . . 2 Core . | . . . . Reactor . | . . . . Propulsion 8 | 2 2 2 2 Treads 2 | 2 . . . Leg . | . . . . Wheel 6 | . 2 2 2 Hover . | . . . . Flight . | . . . . Utility 9 | 3 2 1 3 Device 5 | 2 1 1 1 Storage 2 | 1 1 . . Processor 1 | . . . 1 Hackware . | . . . . Protection 1 | . . . 1 Artifact . | . . . . Weapon 11 | 3 3 1 4 Energy Gun 3 | 3 . . . Energy Cannon . | . . . . Ballistic Gun . | . . . . Ballistic Cannon 7 | . 3 1 3 Launcher 1 | . . . 1 Special Weapon . | . . . . Impact Weapon . | . . . . Slashing Weapon . | . . . . Piercing Weapon . | . . . . Special Melee Weapon . | . . . . Unidentified Prototypes . | . . . . Parts Lost 9 | . . . 9 Power 2 | . . . 2 Propulsion 3 | . . . 3 Utility 2 | . . . 2 Weapon 2 | . . . 2 Highest Loss Streak 8 | . . . 8 To Critical Strikes 3 | . . . 3 Average Slot Usage (%) 98 | . 100 100 95 Engine 14 | . 14 14 14 Treads 2 | . 6 . . Wheel 24 | . 21 28 24 Device 12 | . 14 14 9 Storage 14 | . 14 14 14 Energy Gun 1 | . 4 . . Ballistic Cannon 25 | . 23 28 27 Naked Turns . | . . . . Heaviest Build 94 | 14 92 92 94 Greatest Support 40 | 40 40 20 20 Greatest Overweight (x) 9 | . 9 4 9 Average Overweight (x) 2 | . 3 4 4 Largest Inventory Capacity 25 | 8 25 25 25 Average Capacity 13 | 7 21 25 25 Most Carried 25 | 7 24 25 25 Average Carried 10 | 5 13 24 23 Final Capacity 25 | 8 25 25 25 Final Carried 25 | 6 24 25 16 Class Distribution -------------------- 100% | Mutant Dominant Class ---------------- Mutant | -10/Materials Mutant | -10/Mines Mutant | -10/Exiles Resources | -11 -10 -10 -10 ----------- Run | Yrd Mat Min Exi Matter Collected 1180 | 290 340 346 204 Remotely . | . . . . Salvage Created 860 | 287 296 264 13 Parts 77 | 26 26 25 . Haulers Intercepted 1 | . 1 . . Recyclers Shooed 1 | 1 . . . Parts Field Recycled . | . . . . Retrieved Matter . | . . . . Parts Self-Destructed . | . . . . Prevented . | . . . . Kills | -11 -10 -10 -10 ------- Run | Yrd Mat Min Exi Combat Hostiles Destroyed 17 | . 6 6 5 Guns 1 | . 1 . . Cannons 11 | . 5 6 . AOE 5 | . . . 5 Classes Destroyed 9 | 3 4 1 1 Worker 2 | 2 . . . Builder 4 | . 2 2 . Tunneler 12 | 9 1 2 . Hauler 1 | . 1 . . Recycler 1 | 1 . . . Watcher 3 | . 3 . . Grunt 10 | . 6 4 . Sentry 2 | . . 2 . Assembled 5 | . . . 5 Best Kill Streak 5 | 3 3 2 5 Combat Bots Only 5 | . 3 2 5 Max Kills in Single Turn 2 | 1 2 2 2 Gunslinging . | . . . . Exploded 2 | . . . 2 Melee . | . . . . Uniques/NPCs Destroyed . | . . . . Combat | -11 -10 -10 -10 -------- Run | Yrd Mat Min Exi Hostile Shots Fired 134 | . 16 24 94 Missed 42 | . 6 6 30 Damage Taken 1255 | . 99 206 950 Core 259 | . . 47 212 Absorbed by Shields . | . . . . Ignored by Resistances 352 | . 29 57 266 Core Remaining (%) 100 | 100 . . . Volleys Fired 102 | 18 27 20 37 Largest 2 | 2 2 2 2 Hottest 90 | 90 90 70 70 Shots Fired 204 | 36 54 40 74 Gun 45 | 36 9 . . Cannon 155 | . 45 40 70 Launcher 4 | . . . 4 Special . | . . . . Kinetic 155 | . 45 40 70 Thermal 45 | 36 9 . . Explosive 4 | . . . 4 Electromagnetic . | . . . . Robot Hit Streak 19 | 11 11 19 14 Robot Miss Streak 3 | 1 3 3 2 Penetration Max . | . . . . Secondary Targets . | . . . . Shots Hit Robots 153 | 25 35 30 63 Core Hits 62 | 13 15 13 21 Critical Kills . | . . . . Critical Parts Destroyed . | . . . . Critical Strikes 7 | 2 1 1 3 Burn 2 | 2 . . . Blast 5 | . 1 1 3 Melee Attacks . | . . . . Impact . | . . . . Slashing . | . . . . Piercing . | . . . . Sneak Attacks . | . . . . Combat Hostiles . | . . . . Follow-up Attacks . | . . . . Damage Inflicted 2766 | 301 589 527 1349 Guns 399 | 301 98 . . Cannons 2062 | . 491 527 1044 Explosions 305 | . . . 305 Melee . | . . . . Ramming . | . . . . Kinetic 2062 | . 491 527 1044 Thermal 399 | 301 98 . . Explosive 305 | . . . 305 Electromagnetic . | . . . . Impact . | . . . . Slashing . | . . . . Piercing . | . . . . Highest Corruption 1 | . 1 1 1 Average Corruption 1 | . 1 1 1 Corruption Purged . | . . . . Corruption Blocked . | . . . . Effects 7 | . 1 4 2 Message Errors 1 | . . 1 . Energy Discharges 5 | . 1 2 2 Data Loss (minor) 1 | . . 1 . Overload Shots . | . . . . Overflow Damage 44 | . 6 . 38 Projectiles 14 | . 6 . 8 Explosions 30 | . . . 30 Melee . | . . . . Knockbacks 28 | . 12 4 12 Impact . | . . . . Kinetic 25 | . 10 3 12 Secondary 3 | . 2 1 . Self-Inflicted Damage 62 | . . . 62 Shots 2 | . . . 2 Rammed . | . . . . Targets Rammed . | . . . . Kicked . | . . . . Crushed . | . . . . Highest Temperature 160 | 90 90 151 160 Average Temperature 44 | 27 25 43 73 Received Heat Transfer 278 | . 72 126 80 Siege Activations . | . . . . Robots Corrupted . | . . . . Combat Hostiles . | . . . . Parts Fried . | . . . . Impact Corruptions . | . . . . Robots Melted . | . . . . Combat Hostiles . | . . . . Parts Melted 4 | 4 . . . Heat Transferred 1225 | 965 260 . . Parts Sabotaged . | . . . . Parts Stolen . | . . . . Parts Stripped . | . . . . Power Chain Reactions . | . . . . Missiles Intercepted . | . . . . Alert | -11 -10 -10 -10 ------- Run | Yrd Mat Min Exi Peak Influence 206 | 55 155 206 . Initial 51 | . . 51 . Average 29 | 3 85 102 . Maximum Alert Level 1 | . . 1 . Low Security (%) 99 | 100 100 98 . Level 1 . | . . 1 . Level 2 . | . . . . Level 3 . | . . . . Level 4 . | . . . . Level 5 . | . . . . High Security . | . . . . Max Security . | . . . . Squads Dispatched 1 | . 1 . . Investigation 1 | . 1 . . Extermination . | . . . . Reinforcement . | . . . . Assault . | . . . . Garrison . | . . . . Intercept . | . . . . Searches Triggered . | . . . . Construction Impeded . | . . . . Haulers Reinforced . | . . . . Active Scanning Responses . | . . . . Cargo Convoy Interrupts . | . . . . Stealth | -11 -10 -10 -10 --------- Run | Yrd Mat Min Exi Distress Signals . | . . . . Communications Jammed . | . . . . Distress Signals . | . . . . Times Spotted 25 | . 11 6 8 Peak Tracking Total 9 | . 3 2 9 Tactical Retreats 1 | . 1 . . Traps | -11 -10 -10 -10 ------- Run | Yrd Mat Min Exi Traps Triggered 2 | . 2 . . Indirectly . | . . . . Trap Hack Attempts . | . . . . Triggered . | . . . . Disarmed . | . . . . Reprogrammed . | . . . . Reused . | . . . . Traps Extracted . | . . . . Installed . | . . . . Triggered . | . . . . Machines | -11 -10 -10 -10 ---------- Run | Yrd Mat Min Exi Machines Disabled 4 | . 2 . 2 Max in Single Turn 1 | . 1 . 1 Machines Repaired . | . . . . Machines Dismantled . | . . . . Machines Sabotaged . | . . . . Overloaded Fab Kills . | . . . . Hacking | -11 -10 -10 -10 --------- Run | Yrd Mat Min Exi Machines Accessed 6 | . 5 . 1 Terminals 3 | . 3 . . Fabricators . | . . . . Repair Stations 1 | . 1 . . Recycling Units 1 | . 1 . . Scanalyzers . | . . . . Garrison Access . | . . . . Total Hacks 39 | . 16 . 23 Successful 30 | . 7 . 23 Failed 9 | . 9 . . Catastrophic 1 | . 1 . . Database Lockouts . | . . . . Manual 14 | . 14 . . Terminals 12 | . 12 . . Fabricators . | . . . . Repair Stations 2 | . 2 . . Recycling Units 2 | . 2 . . Scanalyzers . | . . . . Garrison Access . | . . . . Terminal Hacks 26 | . 3 . 23 Record 23 | . . . 23 Part Schematic 1 | . 1 . . Branch Access Points 1 | . 1 . . Terminal Index 1 | . 1 . . Fabricator Hacks . | . . . . Repair Station Hacks 1 | . 1 . . Scan Component 1 | . 1 . . Recycling Unit Hacks . | . . . . Scanalyzer . | . . . . Garrison Access Hacks . | . . . . Unauthorized Hacks 3 | . 3 . . Terminals 2 | . 2 . . Botnet 2 | . 2 . . Fabricators . | . . . . Repair Stations . | . . . . Recycling Units 1 | . 1 . . Mask 1 | . 1 . . Scanalyzers . | . . . . Garrison Access . | . . . . Data Cores Recovered . | . . . . Used . | . . . . Hacking Detections 4 | . 4 . . Full Trace Events . | . . . . Feedback Events . | . . . . Feedback Blocked . | . . . . Robot Schematics Acquired . | . . . . Robots Built . | . . . . Authchips . | . . . . Time . | . . . . Total Robot Build Rating . | . . . . Part Schematics Acquired 1 | . 1 . . Parts Built . | . . . . Authchips . | . . . . Time . | . . . . Total Part Build Rating . | . . . . Parts Repaired . | . . . . Time . | . . . . Parts Recycled . | . . . . Recycled Matter . | . . . . Retrieved Matter . | . . . . Retrieved Components . | . . . . Parts Scanalyzed . | . . . . Part Schematics Acquired . | . . . . Parts Damaged . | . . . . Bothacking | -11 -10 -10 -10 ------------ Run | Yrd Mat Min Exi Used RIF Installer . | . . . . Robots Hacked . | . . . . Non-combat . | . . . . Combat . | . . . . Robot Hacks Applied . | . . . . Relay Couplers Released . | . . . . Fabnet Peak Effective % . | . . . . Robots Rewired . | . . . . Allies Hacked . | . . . . Hacks Repelled . | . . . . Allies | -11 -10 -10 -10 -------- Run | Yrd Mat Min Exi Total Allies . | . . . . Largest Group . | . . . . Highest-Rated Group . | . . . . Highest-Rated Ally . | . . . . Total Orders . | . . . . Ally Attacks . | . . . . Total Damage . | . . . . Kills . | . . . . Allies Corrupted . | . . . . Allies Melted . | . . . . Intel | -11 -10 -10 -10 ------- Run | Yrd Mat Min Exi Robot Analysis Total . | . . . . Derelict Logs Recovered . | . . . . Drone Launches . | . . . . Drone Recoveries . | . . . . Exploration | -11 -10 -10 -10 ------------- Run | Yrd Mat Min Exi Turns Passed 4744 | 3070 738 524 412 Spaces Moved 1319 | 375 424 315 205 Core 3 | 3 . . . Treads 461 | 372 89 . . Legs . | . . . . Wheels 855 | . 335 315 205 Hover . | . . . . Flight . | . . . . Fastest Speed 50 | 50 140 140 140 Average Speed 147 | 159 144 140 140 Slowest Speed 215 | 160 215 140 215 Overloaded Moves . | . . . . Propulsion Burnouts . | . . . . Robots Hopped . | . . . . Cave-ins Triggered . | . . . . Exploration Rate (%) 45 | 10 80 46 46 Regions Visited 3 Branch Regions 2 Pre-discovered Areas 1 | . . . 1 Known Exits Taken 1 | . 1 . . Unknown Exits Taken 2 | 1 . 1 . Scrap Searched 1 | . . 1 . Spaces Dug . | . . . . Terrain Destroyed 24 | . . . 24 Melee . | . . . . Projectile . | . . . . AOE 24 | . . . 24 Terrain Rammed . | . . . . Walls Destroyed . | . . . . Machines Disabled . | . . . . Actions | -11 -10 -10 -10 --------- Run | Yrd Mat Min Exi Total 3917 | 2809 496 358 254 Wait 2423 | 2400 9 14 . Move 1316 | 374 423 314 205 Hop . | . . . . Pick Up 32 | 7 22 3 . Fast Attach 9 | 7 2 . . Attach 9 | 1 . . 8 Detach . | . . . . Swap 13 | 1 5 4 3 Drop 13 | 1 8 3 1 Fire 102 | 18 27 20 37 Melee . | . . . . Ram . | . . . . Kick . | . . . . Crush . | . . . . Escape Stasis . | . . . . Rewire . | . . . . Trap . | . . . . Miscellaneous . | . . . . Route ------- -11/Scrapyard -10/Materials (discovered 3 exits: [*Mat x2] / *Min) -10/Mines (discovered 2 exits: [*Mat] / *Exi) -10/Exiles History --------- Turn | Location | Event 8 | -11/Scrapyard | Discovered new exit (range 16) 3071 | -11/Scrapyard | Entered Materials 3092 | -10/Materials | Build established: Mutant 3365 | -10/Materials | Discovered new exit (range 10) 3647 | -10/Materials | Discovered new exit (range 11) 3709 | -10/Materials | Identified exit to Mines 3809 | -10/Materials | Entered Mines 3811 | -10/Mines | Discovered new exit (range 14) 3816 | -10/Mines | Received a Rocket Launcher from a helpful Derelict 4327 | -10/Mines | Deemed a non-threat by the Exiles lab entrance 4327 | -10/Mines | Discovered new exit (range 5) 4333 | -10/Mines | Entered Exiles 4368 | -10/Exiles | Met 8R-AWN 4392 | -10/Exiles | Met EX-HEX 4447 | -10/Exiles | Met EX-DEC 4454 | -10/Exiles | Learned location of Zion (-6) 4476 | -10/Exiles | Met EX-BIN 4620 | -10/Exiles | Attacked by the Exiles 4637 | -10/Exiles | Core integrity fell below 50% 4674 | -10/Exiles | Core integrity fell below 20% 4698 | -10/Exiles | Lost 8 parts (1p3n2u2w) 4745 | -10/Exiles | Destroyed by 8R-AWN with 8R-AWN's Boregun Last Messages --------------- 04698_ HV Slug penetrates Wall. 04698_ HV Slug penetrates Earth. 04702_ Penetrated by HV Slug. 04703_ 8R-AWN Prototype Device blasted off. 04706_ HV Slug penetrates Earth. 04710_ Penetrated by HV Slug. 04712_ 8R-AWN Adv. Weapon Cycler blasted off. 04715_ Penetrated by HV Slug. 04717_ The unstable cave ceiling collapses. 04719_ 2 Matter crushed. 04720_ Penetrated by HV Slug. 04725_ HV Slug penetrates Earth. 04725_ Penetrated by HV Slug. 04726_ Earth collapses. 04730_ HV Slug penetrates Earth. 04730_ Penetrated by HV Slug. 04734_ The unstable cave ceiling collapses. 04735_ Penetrated by HV Slug. 04735_ Ion Engine destroyed. 04740_ Penetrated by HV Slug. Map ----- +----------------------------------------------------+ | ?????????????????????????????????????????????????? | | ?????????????????????????????????????????????????? | | ?????????????????????????????????????????????????? | | "????????????????????????????????????????????????? | | "????????????????????????????????????????????????? | | "????????????????????????????????????????????????? | | ""???????????????????????????????????????????????? | | ""???????????????????????????????????????????????? | | ""???????????????????????????????????????????????? | | ""???????????????????????????????????????????????? | | ""???????????????????????#???????????????????????? | | ""??????????????????????? ???????????????????????? | | ""???? ?????????????????? ???????????????????????? | | ???????????????????????? ???????????????????????? | | ??? ????????????????????? ???????????????????????? | | ????????????????????????? ???????????????????????? | | ????#???#???????????????? ???????????????????????? | | ???#????????????????###?# #???????????????#??????? | | ????????????????????? ?# #????????????#????? ???? | | #########???????????## ## #?????????????????? ?? | | """"""""##??????????? # #?#??????##???????? ? | | """ """"##?????????## # # #???????????????# #? | | "" " #????#????# # #????#????????## ## | | " """#??????????# #?????#??????## # | | " "##??#?????## # #??????????#??# # | | " "###??###### @%#??????#??????## ? | | """ #???????????## #?# | | """######## % % ##?????#?????# #?? | | "#????# # % ###????????### #??? | | ###?# % ########## #??? | | ##?## % % % #""""## #???? | | ## a % %%% * ##??? | | #g! * #??? | | ####%% ##?? | | ?#"% "#### ### | | #" ?#######??#### * # | | ## ##????????#????##### | | ######?#???????#?????????### | | " ###?????????????##??????????### | | """ ""#????#?##???????????#?????????### | | ""#" "##??????????????????????????????#" | | """##"""""""##???????????????????????????????#### | | ""###########??????#????????#??????????????????## | | ###??????????????????????????????#???#??????????## | | ????????????????????????????????????????????????## | | ?????????????#??#????????#??????????????????#????? | | ???????????????#?????????????????????????????????? | | ????????#??????#????????????????#????????#???????? | | ????#??????????????????????????????#?????????????? | | ???????????????????????????????????????????#?????? | +----------------------------------------------------+ Best States ------------- Heat Dissipation 35 Energy Generation 10 Energy Capacity 250 Matter Stores 300 Matter Capacity 300 Sight Range 16 Terrain Scan Range 16 Terrain Scan Density 10 Armor Coverage 150 Resistance: KI 20 Resistance: TH 20 Resistance: EX 20 Resistance: EM 20 Resistance: I 20 Resistance: S 20 Resistance: P 20 Evasion (%) 40 Targeting Accuracy 5 Recoil Reduction 2 Offensive Hacking 10 Item Schematics ----------------- Huge Storage Unit | -10/Materials | Hacked Robot Schematics ------------------ None Fabricated ------------ Nothing Alien Tech Used ----------------- None Achievements -------------- None Challenges ------------ None Game ------ Seed RestorationCoilScythe Manual? 0 Play Time 00:25:19 Cumulative 301.2 hours Start 2023.12.23 @ 17:52:13 End 2023.12.23 @ 19:42:44 Sessions 1 Manual Loads 0 Difficulty Adventurer Special Mode None Game No. 71 Rogue 52 Adventurer 13 Explorer 6 Win Type - Total 24 Types 9/0/4/3/0/6/2/0/0 Lore% 66 Gallery% 77 Achievement% 72 Wizard Run 0 Options --------- ASCII 0 Keyboard 0 Movement Mouse Keybinds 0 Fullscreen 1 Font 24/Smallcaps Map View 76x50 Zoom Use 0% Tactical HUD 1 Map Filters NONE Filters NONE Steam 1 RUN: 1a3f4c21-0ecf-44d4-ae2d-02504aec116e